[Event "British Championship 2024"]
[Site "Hull"]
[Date "2024.07.31"]
[Round "2.23"]
[White "Sachdeva, Ronit"]
[Black "Hobson, Kenneth"]
[Result "0-1"]
[Annotator "RC"]
[ECO "E04"]
[WhiteElo "1907"]
[BlackElo "2227"]
[PlyCount "132"]
[EventDate "2024.07.31"]
[EventCountry "GBR"]
[SourceTitle "playchess.com"]
[Source "ChessBase"]
[SourceQuality "1"]
[TimeControl "40/5400+30:1800+30"]

1. d4 {[%emt 0:00:03]} Nf6 {[%emt 0:00:41]} 2. c4 {[%emt 0:00:06]} e6 {[%emt 0:00:33]} 3. g3 {[%emt 0:00:08]} d5 {[%emt 0:00:42]} 4. Bg2 {[%emt 0:00:06]} dxc4 {[%emt 0:01:14]} 5. Nf3 {[%emt 0:00:39]} Bb4+ {[%emt 0:00:45]} 6. Bd2 {[%emt 0:03:38]} a5 {[%emt 0:00:51]} 7. a3 {[%emt 0:01:41]} Bxd2+ {[%emt 0:01:14]} 8. Nbxd2 {[%emt 0:00:41]} b5 {[%emt 0:03:02]} 9. b3 {[%emt 0:02:44]} cxb3 {[%emt 0:03:33]} 10. Qxb3 {[%emt 0:00:42]} c6 {[%emt 0:01:12]} 11. O-O {[%emt 0:01:49]} O-O {[%emt 0:04:09]} 12. Qb2 {[%emt 0:01:55]} Nbd7 {[%emt 0:03:30]} 13. Rfc1 {[%emt 0:03:36]} Bb7 {[%emt 0:01:51]} 14. Ne1 {[%emt 0:06:32]} Qb6 {[%emt 0:06:51]} 15. Nd3 {[%emt 0:03:39]} Rfc8 {[%emt 0:02:48]} 16. Nb3 {[%emt 0:07:54]} Rc7 {[%emt 0:14:39]} 17. Rab1 {[%emt 0:06:39]} Rd8 {[%emt 0:03:42]} 18. e3 {[%emt 0:04:19]} a4 {[%emt 0:06:40]} 19. Nbc5 {[%emt 0:01:18]} Nxc5 {[%emt 0:05:05]} 20. Nxc5 {[%emt 0:05:15]} Qa7 {[%emt 0:03:03]} 21. Rc2 {[%emt 0:06:40]} Nd5 {[%emt 0:06:08]} 22. Rbc1 {[%emt 0:12:42]} Ba8 {[%emt 0:01:35]} 23. Nd3 {[%emt 0:03:20]} Rdc8 {[%emt 0:02:00]} 24. Nb4 {[%emt 0:06:18]} h6 {[%emt 0:05:23]} 25. Rc5 {[%emt 0:03:41]} Qa5 {[%emt 0:03:40]} 26. Bxd5 {[%emt 0:03:25]} cxd5 {[%emt 0:00:58]} 27. Nd3 {[%emt 0:01:42]} Rxc5 {[%emt 0:00:46]} 28. Nxc5 {[%emt 0:00:36]} Bc6 {[%emt 0:01:02]} 29. Nd3 {[%emt 0:02:07]} Bd7 {[%emt 0:02:32]} 30. Nc5 {[%emt 0:01:35]} Be8 {[%emt 0:00:18]} 31. Rb1 {[%emt 0:01:43]} Qa7 {[%emt 0:01:14]} 32. Nd3 {[%emt 0:03:38]} Qe7 {[%emt 0:01:09]} 33. Rc1 {[%emt 0:03:03]} Rc4 {[%emt 0:01:11]} 34. Rc3 {[%emt 0:02:24]} Qc7 {[%emt 0:01:35]} 35. Nc5 {[%emt 0:00:13]} Qa5 {[%emt 0:00:42]} 36. Rc1 {[%emt 0:01:25]} Kf8 {[%emt 0:03:56]} 37. Nd3 {[%emt 0:00:30]} f6 {[%emt 0:00:41]} 38. Nc5 {[%emt 0:00:31]} Ke7 {[%emt 0:00:24]} 39. Rb1 {[%emt 0:00:21]} Qc3 {[%emt 0:01:18]} 40. Qe2 {[%emt 0:00:39]} Qc2 {[%emt 0:04:32]} 41. Qxc2 {[%emt 0:04:17]} Rxc2 {[%emt 0:00:15]} 42. Ra1 {[%emt 0:05:54]} Bh5 {[%emt 0:01:39]} 43. h3 {[%emt 0:04:25]} Be2 {[%emt 0:03:11]} 44. Na6 {[%emt 0:01:21]} Bc4 {[%emt 0:01:27]} 45. Nb4 {[%emt 0:00:38]} Rd2 {[%emt 0:01:53]} 46. Rb1 {[%emt 0:01:47]} Kd6 {[%emt 0:00:48]} 47. Rc1 {[%emt 0:02:29]} e5 {[%emt 0:02:02]} 48. dxe5+ {[%emt 0:01:06]} fxe5 {[%emt 0:00:08]} 49. f4 {[%emt 0:01:51]} exf4 {[%emt 0:01:32]} 50. gxf4 {[%emt 0:00:25]} Rb2 {[%emt 0:01:17]} 51. Rc2 {[%emt 0:04:06]} Rxc2 {[%emt 0:03:09]} 52. Nxc2 {[%emt 0:00:05]} Bd3 {[%emt 0:01:17]} 53. Nb4 {[%emt 0:01:16]} Be4 {[%emt 0:02:46]} 54. Kf2 {[%emt 0:01:45]} Kc5 {[%emt 0:00:29]} 55. Ke2 {[%emt 0:00:45]} Kc4 {[%emt 0:00:17]} 56. Kd2 {[%emt 0:00:26]} Kb3 {[%emt 0:00:16]} 57. h4 {[%emt 0:00:45]} Kb2 {[%emt 0:00:25]} 58. Na6 {[%emt 0:02:07]} Kxa3 {[%emt 0:01:06]} 59. Kc3 {[%emt 0:00:10]} Ka2 {[%emt 0:00:08]} 60. Nc7 {[%emt 0:01:03]} Kb1 {[%emt 0:07:33]} 61. Nxb5 {[%emt 0:00:58]} Kc1 {[%emt 0:00:32]} 62. Nd4 {[%emt 0:01:30]} g6 {[%emt 0:01:27]} 63. Ne2+ {[%emt 0:00:53]} Kd1 {[%emt 0:00:49]} 64. Ng3 {[%emt 0:00:19]} h5 {[%emt 0:02:23]} 65. Kb4 {[%emt 0:01:17]} Kd2 {[%emt 0:00:13]} 66. f5 {[%emt 0:00:46]} Bxf5 {[%emt 0:00:18]} 0-1

[Event "British Championship 2024"]
[Site "Hull"]
[Date "2024.07.31"]
[Round "2.24"]
[White "Salmons, Calum"]
[Black "Merriman, John"]
[Result "1-0"]
[Annotator "RC"]
[ECO "D02"]
[WhiteElo "1999"]
[BlackElo "2251"]
[PlyCount "89"]
[EventDate "2024.07.31"]
[EventCountry "GBR"]
[SourceTitle "playchess.com"]
[Source "ChessBase"]
[SourceQuality "1"]
[TimeControl "40/5400+30:1800+30"]

1. d4 {[%emt 0:00:02]} e6 {[%emt 0:00:57]} 2. Bf4 {[%emt 0:00:11]} Nf6 {[%emt 0:00:38]} 3. e3 {[%emt 0:00:14]} c5 {[%emt 0:00:39]} 4. c3 {[%emt 0:00:14]} Nc6 {[%emt 0:00:54]} 5. Nd2 {[%emt 0:01:08]} d5 {[%emt 0:01:36]} 6. Ngf3 {[%emt 0:02:25]} Nh5 {[%emt 0:04:28]} 7. Bg5 {[%emt 0:02:24]} Qb6 {[%emt 0:00:29]} 8. Qb3 {[%emt 0:00:59]} h6 {[%emt 0:00:46]} 9. Bh4 {[%emt 0:00:17]} g5 {[%emt 0:00:24]} 10. Bg3 {[%emt 0:00:19]} Nxg3 {[%emt 0:05:34]} 11. hxg3 {[%emt 0:00:34]} Bg7 {[%emt 0:01:53]} 12. Rc1 {[%emt 0:14:17]} Bd7 {[%emt 0:14:41]} 13. Bd3 {[%emt 0:04:17]} c4 {[%emt 0:13:35]} 14. Qxb6 {[%emt 0:00:37]} axb6 {[%emt 0:00:05]} 15. Bb1 {[%emt 0:00:15]} f5 {[%emt 0:00:43]} 16. a3 {[%emt 0:08:24]} b5 {[%emt 0:01:57]} 17. Rd1 {[%emt 0:09:37]} Ke7 {[%emt 0:01:50]} 18. Ng1 {[%emt 0:05:14]} Bf6 {[%emt 0:06:52]} 19. f3 {[%emt 0:03:55]} e5 {[%emt 0:07:41]} 20. dxe5 {[%emt 0:15:56]} Bxe5 {[%emt 0:00:14]} 21. f4 {[%emt 0:01:18]} Bf6 {[%emt 0:12:29]} 22. Ndf3 {[%emt 0:01:12]} Kd6 {[%emt 0:04:43]} 23. Ne2 {[%emt 0:04:22]} Rae8 {[%emt 0:07:54]} 24. Kf2 {[%emt 0:00:38]} Kc5 {[%emt 0:01:23]} 25. Ned4 {[%emt 0:07:33]} Nxd4 {[%emt 0:02:10]} 26. exd4+ {[%emt 0:00:24]} Kd6 {[%emt 0:00:32]} 27. Rh5 {[%emt 0:00:56]} Ref8 {[%emt 0:03:09]} 28. Rdh1 {[%emt 0:01:14]} gxf4 {[%emt 0:00:47]} 29. gxf4 {[%emt 0:00:18]} Bg7 {[%emt 0:00:05]} 30. Nh4 {[%emt 0:06:42]} Rf6 {[%emt 0:01:07]} 31. Nxf5+ {[%emt 0:00:36]} Bxf5 {[%emt 0:00:06]} 32. Rxf5 {[%emt 0:00:02]} Rxf5 {[%emt 0:01:03]} 33. Bxf5 {[%emt 0:00:02]} Rf8 {[%emt 0:00:09]} 34. g4 {[%emt 0:00:10]} Rf7 {[%emt 0:00:39]} 35. Kf3 {[%emt 0:01:03]} Re7 {[%emt 0:01:26]} 36. g5 {[%emt 0:02:17]} hxg5 {[%emt 0:00:32]} 37. fxg5 {[%emt 0:00:02]} Rf7 {[%emt 0:02:36]} 38. Kg4 {[%emt 0:00:08]} Re7 {[%emt 0:00:04]} 39. Rh7 {[%emt 0:01:34]} Rf7 {[%emt 0:01:14]} 40. g6 {[%emt 0:04:34]} Re7 {[%emt 0:01:13]} 41. Kg5 {[%emt 0:30:25]} Bf8 {[%emt 0:01:43]} 42. Rh8 {[%emt 0:00:00]} Bg7 {[%emt 0:01:49]} 43. Rg8 {[%emt 0:00:00]} Rc7 {[%emt 0:01:08]} 44. Rxg7 {[%emt 0:00:00]} Rxg7 {[%emt 0:00:04]} 45. Kf6 {[%emt 0:00:00]} 1-0

[Event "British Championship 2024"]
[Site "Hull"]
[Date "2024.07.31"]
[Round "2.25"]
[White "Trent, Lawrence"]
[Black "Mitchell, Martin"]
[Result "1-0"]
[Annotator "RC"]
[ECO "B09"]
[WhiteElo "2416"]
[BlackElo "2159"]
[PlyCount "98"]
[EventDate "2024.07.31"]
[EventCountry "GBR"]
[SourceTitle "playchess.com"]
[Source "ChessBase"]
[SourceQuality "1"]
[TimeControl "40/5400+30:1800+30"]

1. e4 {[%emt 0:01:22]} d6 {[%emt 0:01:00]} 2. d4 {[%emt 0:00:12]} Nf6 {[%emt 0:00:19]} 3. Nc3 {[%emt 0:00:03]} g6 {[%emt 0:00:22]} 4. f4 {[%emt 0:00:16]} Bg7 {[%emt 0:00:33]} 5. Qd2 {[%emt 0:01:06]} d5 {[%emt 0:01:41]} 6. e5 {[%emt 0:00:35]} Ne4 {[%emt 0:00:16]} 7. Qe3 {[%emt 0:00:30]} Nxc3 {[%emt 0:10:29]} 8. bxc3 {[%emt 0:01:22]} Bf5 {[%emt 0:02:11]} 9. Nf3 {[%emt 0:00:35]} Bxc2 {[%emt 0:03:03]} 10. e6 {[%emt 0:00:08]} fxe6 {[%emt 0:08:38]} 11. Ng5 {[%emt 0:06:58]} Bf6 {[%emt 0:09:48]} 12. Nxe6 {[%emt 0:22:08]} Qc8 {[%emt 0:10:11]} 13. Ba3 {[%emt 0:06:19]} Kf7 {[%emt 0:05:59]} 14. Nc5 {[%emt 0:00:09]} b6 {[%emt 0:03:00]} 15. Nd3 {[%emt 0:00:10]} Qe6 {[%emt 0:03:44]} 16. Ne5+ {[%emt 0:00:20]} Bxe5 {[%emt 0:00:48]} 17. fxe5 {[%emt 0:00:25]} Kg7 {[%emt 0:01:30]} 18. Be2 {[%emt 0:08:22]} Rf8 {[%emt 0:04:07]} 19. h4 {[%emt 0:00:24]} Nd7 {[%emt 0:04:49]} 20. h5 {[%emt 0:00:43]} c5 {[%emt 0:03:04]} 21. Rh4 {[%emt 0:07:01]} gxh5 {[%emt 0:09:21]} 22. Rxh5 {[%emt 0:01:30]} Bg6 {[%emt 0:02:32]} 23. Qh6+ {[%emt 0:02:06]} Kg8 {[%emt 0:03:02]} 24. Rg5 {[%emt 0:00:49]} cxd4 {[%emt 0:05:01]} 25. cxd4 {[%emt 0:04:35]} Qf7 {[%emt 0:02:41]} 26. Bf3 {[%emt 0:02:33]} Kh8 {[%emt 0:01:07]} 27. O-O-O {[%emt 0:04:30]} Rac8+ {[%emt 0:01:03]} 28. Kb2 {[%emt 0:00:01]} Rc2+ {[%emt 0:00:52]} 29. Ka1 {[%emt 0:00:00]} Rfc8 {[%emt 0:01:57]} 30. Rxg6 {[%emt 0:12:45]} Qxg6 {[%emt 0:00:14]} 31. Qxg6 {[%emt 0:00:02]} hxg6 {[%emt 0:00:06]} 32. Bxe7 {[%emt 0:00:07]} Rc1+ {[%emt 0:01:23]} 33. Rxc1 {[%emt 0:00:10]} Rxc1+ {[%emt 0:00:04]} 34. Kb2 {[%emt 0:00:02]} Rc4 {[%emt 0:01:34]} 35. e6 {[%emt 0:00:26]} Nb8 {[%emt 0:00:18]} 36. Bxd5 {[%emt 0:00:46]} Rc8 {[%emt 0:00:08]} 37. Bf6+ {[%emt 0:00:11]} Kh7 {[%emt 0:00:18]} 38. g4 {[%emt 0:01:06]} g5 {[%emt 0:00:42]} 39. Be4+ {[%emt 0:00:35]} Kg8 {[%emt 0:00:01]} 40. Bg6 {[%emt 0:00:35]} Nc6 {[%emt 0:01:10]} 41. e7 {[%emt 0:30:55]} Nxe7 {[%emt 0:30:36]} 42. Bxe7 {[%emt 0:00:02]} Rc4 {[%emt 0:00:28]} 43. d5 {[%emt 0:00:52]} Rxg4 {[%emt 0:00:37]} 44. d6 {[%emt 0:00:01]} Rd4 {[%emt 0:00:00]} 45. Kc3 {[%emt 0:00:00]} Rd5 {[%emt 0:02:13]} 46. Kc4 {[%emt 0:19:43]} Rd2 47. Kb5 {[%emt 0:00:30]} g4 {[%emt 0:01:00]} 48. Kc6 g3 49. Be4 Kf7 {[%emt 0:01:00]} 1-0

[Event "British Championship 2024"]
[Site "Hull"]
[Date "2024.07.31"]
[Round "2.27"]
[White "Eggleston, David J"]
[Black "Stubbs, Oliver"]
[Result "1-0"]
[Annotator "RC"]
[ECO "C07"]
[WhiteElo "2335"]
[BlackElo "2146"]
[PlyCount "113"]
[EventDate "2024.07.31"]
[EventCountry "GBR"]
[SourceTitle "playchess.com"]
[Source "ChessBase"]
[SourceQuality "1"]
[TimeControl "40/5400+30:1800+30"]

1. e4 {[%emt 0:00:01]} e6 {[%emt 0:02:38]} 2. d4 {[%emt 0:00:11]} d5 {[%emt 0:00:06]} 3. Nd2 {[%emt 0:00:21]} c5 {[%emt 0:00:08]} 4. Ngf3 {[%emt 0:00:09]} cxd4 {[%emt 0:00:27]} 5. Nxd4 {[%emt 0:00:06]} Nf6 {[%emt 0:00:20]} 6. Bb5+ {[%emt 0:10:21]} Bd7 {[%emt 0:02:30]} 7. Qe2 {[%emt 0:03:06]} Bxb5 {[%emt 0:06:01]} 8. Qxb5+ {[%emt 0:01:33]} Qd7 {[%emt 0:00:09]} 9. e5 {[%emt 0:00:57]} Ng8 {[%emt 0:02:48]} 10. Qd3 {[%emt 0:07:56]} Nc6 {[%emt 0:04:26]} 11. N2f3 {[%emt 0:00:53]} Bc5 {[%emt 0:02:39]} 12. c3 {[%emt 0:20:45]} Nge7 {[%emt 0:03:49]} 13. O-O {[%emt 0:00:22]} Rc8 {[%emt 0:11:07]} 14. a3 {[%emt 0:02:49]} Ng6 {[%emt 0:03:49]} 15. Re1 {[%emt 0:00:53]} O-O {[%emt 0:03:19]} 16. h4 {[%emt 0:05:02]} Qc7 {[%emt 0:13:23]} 17. Nxc6 {[%emt 0:01:08]} Qxc6 {[%emt 0:03:59]} 18. h5 {[%emt 0:05:22]} Nh8 {[%emt 0:05:25]} 19. Ng5 {[%emt 0:09:01]} g6 {[%emt 0:00:17]} 20. Qh3 {[%emt 0:03:31]} h6 {[%emt 0:05:39]} 21. hxg6 {[%emt 0:01:44]} fxg6 {[%emt 0:00:31]} 22. Nf3 {[%emt 0:00:05]} h5 {[%emt 0:02:25]} 23. Be3 {[%emt 0:00:08]} Bxe3 {[%emt 0:03:04]} 24. Rxe3 {[%emt 0:00:09]} Rce8 {[%emt 0:01:42]} 25. Nd4 {[%emt 0:05:45]} Qd7 {[%emt 0:00:40]} 26. Rae1 {[%emt 0:03:09]} Rf7 {[%emt 0:02:19]} 27. Rg3 {[%emt 0:00:41]} Rg7 {[%emt 0:00:37]} 28. Rf3 {[%emt 0:01:02]} Nf7 {[%emt 0:01:59]} 29. Qh4 {[%emt 0:00:12]} Nh6 {[%emt 0:04:10]} 30. Qg5 {[%emt 0:04:40]} Nf5 {[%emt 0:01:09]} 31. Nxf5 {[%emt 0:00:39]} exf5 {[%emt 0:02:09]} 32. Rd3 {[%emt 0:00:21]} Qe6 {[%emt 0:01:10]} 33. Rd4 {[%emt 0:02:51]} Kh7 {[%emt 0:03:10]} 34. Qd2 {[%emt 0:01:06]} Rd7 {[%emt 0:01:24]} 35. f4 {[%emt 0:00:18]} Rc8 {[%emt 0:01:31]} 36. Rd1 {[%emt 0:00:22]} g5 {[%emt 0:01:28]} 37. Rxd5 {[%emt 0:01:40]} Rxd5 {[%emt 0:00:29]} 38. Qxd5 {[%emt 0:00:05]} Qxd5 {[%emt 0:00:07]} 39. Rxd5 {[%emt 0:00:03]} gxf4 {[%emt 0:01:10]} 40. Rd7+ {[%emt 0:00:21]} Kg6 {[%emt 0:00:28]} 41. e6 {[%emt 0:31:26]} Rc5 {[%emt 0:34:40]} 42. e7 {[%emt 0:00:50]} Re5 {[%emt 0:01:30]} 43. Rxb7 {[%emt 0:00:11]} a5 {[%emt 0:00:15]} 44. a4 {[%emt 0:01:12]} h4 {[%emt 0:00:00]} 45. Kf2 {[%emt 0:00:00]} Re3 {[%emt 0:00:00]} 46. b4 {[%emt 0:00:00]} axb4 {[%emt 0:00:00]} 47. cxb4 {[%emt 0:00:00]} Kf7 {[%emt 0:00:00]} 48. a5 {[%emt 0:00:00]} Ra3 {[%emt 0:00:00]} 49. Rb5 {[%emt 0:00:00]} Kxe7 {[%emt 0:00:00]} 50. Rxf5 {[%emt 0:00:00]} h3 {[%emt 0:00:00]} 51. gxh3 {[%emt 0:00:00]} Rxh3 {[%emt 0:00:00]} 52. a6 {[%emt 0:00:00]} Kd6 {[%emt 0:00:00]} 53. Rf6+ {[%emt 0:00:00]} Kc7 {[%emt 0:00:00]} 54. b5 {[%emt 0:00:00]} Rb3 {[%emt 0:00:00]} 55. a7 {[%emt 0:00:00]} Kb7 {[%emt 0:00:00]} 56. b6 {[%emt 0:00:00]} Ra3 {[%emt 0:00:57]} 57. Rf8 {[%emt 0:00:01]} 1-0

[Event "British Championship 2024"]
[Site "Hull"]
[Date "2024.07.31"]
[Round "2.28"]
[White "Richardson, John R"]
[Black "Kalaiyalahan, Akshaya"]
[Result "1-0"]
[Annotator "RC"]
[ECO "D36"]
[WhiteElo "2299"]
[BlackElo "2140"]
[PlyCount "81"]
[EventDate "2024.07.31"]
[EventCountry "GBR"]
[SourceTitle "playchess.com"]
[Source "ChessBase"]
[SourceQuality "1"]
[TimeControl "40/5400+30:1800+30"]

1. c4 {[%emt 0:00:01]} Nf6 {[%emt 0:00:07]} 2. Nc3 {[%emt 0:00:28]} e6 {[%emt 0:00:12]} 3. d4 {[%emt 0:00:05]} d5 {[%emt 0:00:03]} 4. cxd5 {[%emt 0:00:04]} exd5 {[%emt 0:00:05]} 5. Bg5 {[%emt 0:00:03]} c6 {[%emt 0:00:13]} 6. Qc2 {[%emt 0:00:07]} g6 {[%emt 0:00:34]} 7. e3 {[%emt 0:01:12]} Bf5 {[%emt 0:02:19]} 8. Bd3 {[%emt 0:00:12]} Bxd3 {[%emt 0:00:26]} 9. Qxd3 {[%emt 0:00:01]} Be7 {[%emt 0:00:33]} 10. Nf3 {[%emt 0:02:36]} Nbd7 {[%emt 0:00:18]} 11. O-O {[%emt 0:00:16]} O-O {[%emt 0:00:30]} 12. h3 {[%emt 0:25:06]} Re8 {[%emt 0:03:00]} 13. Bf4 {[%emt 0:00:09]} Bf8 {[%emt 0:07:07]} 14. Rfe1 {[%emt 0:03:27]} Ne4 {[%emt 0:01:55]} 15. Qc2 {[%emt 0:02:26]} a5 {[%emt 0:13:17]} 16. Nxe4 {[%emt 0:08:43]} dxe4 {[%emt 0:09:15]} 17. Ne5 {[%emt 0:08:08]} Nxe5 {[%emt 0:01:22]} 18. Bxe5 {[%emt 0:02:47]} Qd5 {[%emt 0:04:27]} 19. Bf4 {[%emt 0:02:00]} Re6 {[%emt 0:07:17]} 20. Rec1 {[%emt 0:01:09]} Bd6 {[%emt 0:04:55]} 21. Bxd6 {[%emt 0:00:11]} Rxd6 {[%emt 0:04:21]} 22. Qc5 {[%emt 0:00:04]} Qe6 {[%emt 0:09:18]} 23. Qb6 {[%emt 0:12:14]} Qd7 {[%emt 0:05:06]} 24. Rc5 {[%emt 0:00:55]} Ra6 {[%emt 0:01:06]} 25. Qb3 {[%emt 0:00:01]} a4 {[%emt 0:02:13]} 26. Qb4 {[%emt 0:01:59]} b5 {[%emt 0:09:05]} 27. Rac1 {[%emt 0:04:51]} f6 {[%emt 0:06:03]} 28. R5c3 {[%emt 0:12:42]} Rd5 {[%emt 0:01:51]} 29. Ra3 {[%emt 0:00:54]} Ra7 {[%emt 0:00:55]} 30. b3 {[%emt 0:00:36]} Rg5 {[%emt 0:05:24]} 31. Kh1 {[%emt 0:04:25]} Rf5 {[%emt 0:00:08]} 32. Rc2 {[%emt 0:00:30]} Rc7 {[%emt 0:01:47]} 33. bxa4 {[%emt 0:00:25]} bxa4 {[%emt 0:00:27]} 34. Rxa4 {[%emt 0:01:27]} c5 {[%emt 0:00:20]} 35. Qc4+ {[%emt 0:03:08]} Kg7 {[%emt 0:00:04]} 36. Ra5 {[%emt 0:00:26]} Rb7 {[%emt 0:01:07]} 37. Rxc5 {[%emt 0:00:30]} Rb1+ {[%emt 0:00:21]} 38. Kh2 {[%emt 0:01:18]} Qd6+ {[%emt 0:00:21]} 39. g3 {[%emt 0:00:12]} Rf3 {[%emt 0:00:34]} 40. Rc7+ {[%emt 0:01:15]} Kh6 {[%emt 0:00:06]} 41. Qf7 {[%emt 0:30:32]} 1-0

[Event "British Championship 2024"]
[Site "Hull"]
[Date "2024.07.31"]
[Round "2.29"]
[White "Khoury, Theo"]
[Black "Taylor, Adam A"]
[Result "1-0"]
[Annotator "RC"]
[ECO "B32"]
[WhiteElo "2057"]
[BlackElo "2281"]
[PlyCount "197"]
[EventDate "2024.07.31"]
[EventCountry "GBR"]
[SourceTitle "playchess.com"]
[Source "ChessBase"]
[SourceQuality "1"]
[TimeControl "40/5400+30:1800+30"]

1. e4 {[%emt 0:00:01]} c5 {[%emt 0:08:02]} 2. Nf3 {[%emt 0:00:11]} Nc6 {[%emt 0:00:07]} 3. d4 {[%emt 0:00:07]} cxd4 {[%emt 0:00:03]} 4. Nxd4 {[%emt 0:00:06]} e5 {[%emt 0:00:03]} 5. Nb5 {[%emt 0:00:13]} d6 {[%emt 0:00:04]} 6. c4 {[%emt 0:00:09]} Be7 {[%emt 0:00:07]} 7. N1c3 {[%emt 0:00:06]} a6 {[%emt 0:00:04]} 8. Na3 {[%emt 0:00:04]} Be6 {[%emt 0:00:17]} 9. Nc2 {[%emt 0:01:13]} Bg5 {[%emt 0:00:07]} 10. Be2 {[%emt 0:00:04]} Bxc1 {[%emt 0:00:14]} 11. Rxc1 {[%emt 0:00:05]} Nge7 {[%emt 0:00:08]} 12. Qd2 {[%emt 0:04:07]} O-O {[%emt 0:05:16]} 13. O-O {[%emt 0:00:05]} Ng6 {[%emt 0:09:22]} 14. Rfd1 {[%emt 0:07:25]} Nf4 {[%emt 0:02:45]} 15. Bf1 {[%emt 0:00:06]} Qg5 {[%emt 0:01:39]} 16. f3 {[%emt 0:02:06]} h5 {[%emt 0:12:28]} 17. Nd5 {[%emt 0:04:05]} Bxd5 {[%emt 0:04:57]} 18. cxd5 {[%emt 0:00:11]} Ne7 {[%emt 0:00:04]} 19. g3 {[%emt 0:03:55]} h4 {[%emt 0:06:38]} 20. Kf2 {[%emt 0:00:44]} hxg3+ {[%emt 0:00:20]} 21. hxg3 {[%emt 0:00:09]} f5 {[%emt 0:01:22]} 22. gxf4 {[%emt 0:06:34]} Qh5 {[%emt 0:15:13]} 23. Bg2 {[%emt 0:09:46]} Qh4+ {[%emt 0:13:50]} 24. Kg1 {[%emt 0:02:32]} fxe4 {[%emt 0:00:09]} 25. fxe4 {[%emt 0:01:50]} Rxf4 {[%emt 0:00:09]} 26. Ne3 {[%emt 0:11:33]} Qg5 {[%emt 0:02:14]} 27. Rf1 {[%emt 0:14:22]} Ng6 {[%emt 0:00:37]} 28. Rxf4 {[%emt 0:08:53]} Nxf4 {[%emt 0:00:12]} 29. Rc2 {[%emt 0:00:38]} Rf8 {[%emt 0:02:06]} 30. Qe1 {[%emt 0:01:11]} g6 {[%emt 0:12:53]} 31. Nf1 {[%emt 0:08:05]} Nd3 {[%emt 0:03:10]} 32. Qd2 {[%emt 0:01:30]} Nf4 {[%emt 0:00:05]} 33. Qe3 {[%emt 0:00:47]} Qh4 {[%emt 0:00:55]} 34. Rf2 {[%emt 0:03:44]} Kg7 {[%emt 0:00:35]} 35. Rf3 {[%emt 0:01:57]} Rc8 {[%emt 0:00:59]} 36. Qd2 {[%emt 0:01:27]} Rc4 {[%emt 0:00:39]} 37. Rc3 {[%emt 0:03:37]} Rd4 {[%emt 0:00:28]} 38. Qf2 {[%emt 0:00:41]} Qg5 {[%emt 0:00:34]} 39. Rg3 {[%emt 0:00:47]} Qh4 {[%emt 0:00:32]} 40. Qc2 {[%emt 0:00:42]} Kh6 {[%emt 0:00:29]} 41. Qc8 {[%emt 0:06:25]} Qf6 {[%emt 0:01:46]} 42. Qg4 {[%emt 0:01:26]} Rc4 {[%emt 0:02:09]} 43. Rc3 {[%emt 0:02:52]} Rxc3 {[%emt 0:01:22]} 44. bxc3 {[%emt 0:00:06]} Qd8 {[%emt 0:00:02]} 45. Kh2 {[%emt 0:02:00]} Qb6 {[%emt 0:01:55]} 46. Qh4+ {[%emt 0:04:29]} Kg7 {[%emt 0:00:03]} 47. Qe1 {[%emt 0:01:28]} Qa5 {[%emt 0:05:49]} 48. Qd2 {[%emt 0:00:18]} Qd8 {[%emt 0:00:20]} 49. Qf2 {[%emt 0:01:49]} Qc7 {[%emt 0:07:54]} 50. Nd2 {[%emt 0:05:11]} Qxc3 {[%emt 0:04:07]} 51. Nf3 {[%emt 0:00:10]} Qc1 {[%emt 0:03:48]} 52. Ng5 {[%emt 0:00:39]} Kf6 {[%emt 0:00:38]} 53. Ne6 {[%emt 0:01:31]} g5 {[%emt 0:00:16]} 54. Nxf4 {[%emt 0:01:12]} Qxf4+ {[%emt 0:04:06]} 55. Kg1 {[%emt 0:02:19]} b5 {[%emt 0:01:50]} 56. Qb6 {[%emt 0:00:33]} Qc1+ {[%emt 0:00:20]} 57. Bf1 {[%emt 0:00:48]} Ke7 {[%emt 0:01:55]} 58. Qa7+ {[%emt 0:01:01]} Kd8 {[%emt 0:00:36]} 59. Qf2 {[%emt 0:00:58]} Kc7 {[%emt 0:00:34]} 60. Kg2 {[%emt 0:00:41]} Qb1 {[%emt 0:00:26]} 61. Qa7+ {[%emt 0:02:03]} Kd8 {[%emt 0:00:32]} 62. Qb6+ {[%emt 0:00:44]} Ke7 {[%emt 0:00:17]} 63. Qc7+ {[%emt 0:00:05]} Ke8 {[%emt 0:00:02]} 64. Qc8+ {[%emt 0:00:48]} Kf7 {[%emt 0:00:06]} 65. Qf5+ {[%emt 0:00:10]} Kg7 {[%emt 0:00:15]} 66. Qxg5+ {[%emt 0:00:07]} Kh7 {[%emt 0:00:12]} 67. Qh5+ {[%emt 0:00:16]} Kg7 {[%emt 0:00:03]} 68. Qe2 {[%emt 0:00:04]} a5 {[%emt 0:01:43]} 69. Kf3 {[%emt 0:00:23]} b4 {[%emt 0:00:10]} 70. Qc4 {[%emt 0:00:44]} Kf6 {[%emt 0:01:38]} 71. Be2 {[%emt 0:00:15]} Qh1+ {[%emt 0:00:36]} 72. Ke3 {[%emt 0:09:07]} Qh6+ {[%emt 0:00:11]} 73. Kd3 {[%emt 0:00:00]} Qh3+ {[%emt 0:00:02]} 74. Kc2 {[%emt 0:00:00]} Kg5 {[%emt 0:00:33]} 75. Qd3 {[%emt 0:00:00]} Qc8+ {[%emt 0:00:08]} 76. Kb3 {[%emt 0:00:00]} Qc5 {[%emt 0:01:22]} 77. Ka4 {[%emt 0:00:00]} Kh4 {[%emt 0:00:23]} 78. Qc4 {[%emt 0:00:00]} Qb6 {[%emt 0:00:10]} 79. Qb5 {[%emt 0:00:00]} Qc7 {[%emt 0:00:17]} 80. Qc6 {[%emt 0:00:00]} Qd8 {[%emt 0:00:03]} 81. Kb5 {[%emt 0:00:00]} Kg3 {[%emt 0:00:35]} 82. Qb6 {[%emt 0:00:00]} Qxb6+ {[%emt 0:01:00]} 83. Kxb6 {[%emt 0:00:00]} a4 {[%emt 0:00:01]} 84. Bd1 {[%emt 0:03:53]} b3 {[%emt 0:00:21]} 85. a3 {[%emt 0:00:15]} Kf4 {[%emt 0:00:46]} 86. Kb5 {[%emt 0:00:18]} Kxe4 {[%emt 0:00:11]} 87. Kxa4 {[%emt 0:00:05]} b2 {[%emt 0:00:48]} 88. Bc2+ {[%emt 0:00:07]} Kxd5 {[%emt 0:01:25]} 89. Kb3 {[%emt 0:00:07]} Kd4 {[%emt 0:00:39]} 90. Kxb2 {[%emt 0:00:14]} e4 {[%emt 0:00:35]} 91. Kb3 {[%emt 0:00:22]} d5 {[%emt 0:00:32]} 92. a4 {[%emt 0:00:29]} e3 {[%emt 0:00:26]} 93. Bd1 {[%emt 0:00:13]} Kd3 {[%emt 0:00:02]} 94. a5 {[%emt 0:00:13]} Kd2 {[%emt 0:00:38]} 95. Bg4 {[%emt 0:00:07]} d4 {[%emt 0:00:05]} 96. a6 {[%emt 0:00:05]} d3 {[%emt 0:01:16]} 97. a7 {[%emt 0:00:05]} e2 {[%emt 0:00:05]} 98. a8=Q {[%emt 0:00:08]} e1=Q {[%emt 0:00:04]} 99. Qa5+ {[%emt 0:00:08]} 1-0